[Event "Romanian Superliga 2024"]
[Site "Mamaia"]
[Date "2024.10.01"]
[Round "4.7"]
[White "Petkov, Momchil"]
[Black "Mendonca, Leon Luke"]
[Result "1/2-1/2"]
[ECO "C02"]
[WhiteElo "2540"]
[BlackElo "2622"]
[Annotator "TA"]
[PlyCount "130"]
[EventDate "2024.09.26"]
[EventType "team-tourn"]
[EventCountry "ROU"]
[SourceTitle "playchess.com"]
[Source "ChessBase"]
[SourceQuality "1"]
[TimeControl "40/5400+30:1800+30"]

{[%evp 64,130,198,190,452,193,389,440,474,387,363,0,412,394,408,166,400,0,0,0,0,0,0,0,64,43,51,52,45,60,83,44,27,31,33,30,37,8,8,8,24,22,30,25,25,9,28,26,24,22,25,25,25,27,23,20,24,8,8,8,8,8,8,17,19,0,0,0,0]} 1. e4 {[%emt 0:00:11]} e6 {[%emt 0:01:08]} 2. d4 {[%emt 0:00:24]} d5 {[%emt 0:00:08]} 3. e5 {[%emt 0:00:12]} c5 {[%emt 0:00:15]} 4. c3 {[%emt 0:00:10]} Nc6 {[%emt 0:00:47]} 5. Nf3 {[%emt 0:00:13]} Qb6 {[%emt 0:01:23]} 6. Bd3 {[%emt 0:00:21]} cxd4 {[%emt 0:01:11]} 7. O-O {[%emt 0:00:16] is cutting edge theory. C02: French: Advance Variation.} Bd7 {[%emt 0:00:25]} 8. Re1 {[%emt 0:00:12]} Nge7 {[%emt 0:01:45]} 9. h4 {[%emt 0:00:18]} h6 {[%emt 0:00:39]} 10. h5 {[%emt 0:03:37]} a6 {[%emt 0:01:42]} 11. Nbd2 {[%emt 0:09:28]} Qc7 {[%emt 0:01:51]} 12. Nb3 {[%emt 0:03:28]} dxc3 {[%emt 0:01:21]} 13. bxc3 {[%emt 0:00:17]} Nc8 {[%emt 0:01:28]} 14. Qd2 $146 {[%emt 0:12:43]} ({Predecessor:} 14. a4 Nb6 15. Be3 Nc4 16. Bxc4 dxc4 17. Nc5 Rd8 18. Rb1 Bc8 19. Qe2 Nxe5 20. Nxa6 {1-0 Adhiban,B (2633)-Budisavljevic,L (2509) Menorca op 1st 2022 (6)}) 14... Nb6 {[%emt 0:02:58]} 15. Qf4 {[%emt 0:02:51]} Rc8 {[%emt 0:07:02]} 16. Rb1 {[%emt 0:08:06]} Nd8 {[%emt 0:08:53]} 17. Be3 {[%emt 0:10:20]} Nc4 {[%emt 0:03:19]} 18. Bd4 {[%emt 0:02:03]} Bb5 {[%emt 0:00:50]} 19. Qg3 {[%emt 0:04:08]} Na3 {[%emt 0:07:11]} 20. Bxb5+ {[%emt 0:01:38]} axb5 {[%emt 0:05:41]} 21. Rbd1 {[%emt 0:02:14]} Ra8 {[%emt 0:05:01]} 22. Rd2 {[%emt 0:08:08]} Nc4 {[%emt 0:17:15]} 23. Rde2 {[%emt 0:00:08]} b6 {[%emt 0:05:24]} 24. Nh4 {[%emt 0:01:20]} Rg8 {[%emt 0:04:32]} 25. f4 {[%emt 0:02:42]} Be7 {[%emt 0:02:30]} 26. Nf3 {[%emt 0:00:10]} g6 {[%emt 0:02:37]} 27. hxg6 {[%emt 0:02:27]} fxg6 {[%emt 0:06:09]} 28. Qh3 {[%emt 0:00:25]} h5 {[%emt 0:02:06]} 29. Bf2 {[%emt 0:01:09]} Qd7 {[%emt 0:06:15]} 30. Nfd4 {[%emt 0:03:19]} Bc5 {[%emt 0:01:43]} 31. Bh4 {[%emt 0:01:31]} Be7 {[%emt 0:01:52]} 32. Bf6 {[%emt 0:06:26]} Ra7 {[%emt 0:00:04]} 33. Kh1 {[%emt 0:01:52]} Rf8 $2 {[%emt 0:01:02]} (33... b4 {might work better.} 34. f5 gxf5) 34. Qh4 {[%emt 0:03:29]} (34. f5 $142) 34... Nf7 $2 {[%emt 0:00:30]} (34... Rg8 35. f5 exf5 (35... gxf5 $2 36. Nxf5 exf5 37. Qxh5+ Kf8 38. Nd4 $18)) 35. Qg3 $18 {[%emt 0:00:53]} (35. Bxe7 Qxe7 36. Qxe7+ Rxe7 $11) 35... Rg8 {[%emt 0:00:32]} 36. f5 {[%emt 0:00:45]} h4 {[%emt 0:00:28]} 37. Qxh4 $2 {[%emt 0:08:10]} ({Not} 37. Qg4 Nh6 (37... Bxf6 $2 38. fxe6 Qd8 39. exf7+ Kxf7 40. exf6 $18) 38. Qxh4 (38. Qg5 Nxf5 39. Nxf5 exf5 $14) 38... Nxf5 $16) (37. Qf3 $18 gxf5 (37... exf5 $2 38. e6 $18) 38. Nxe6 Qxe6 39. Nd4 Ncxe5 40. Bxe5 (40. Nxe6 Nxf3 41. Ng7+ Rxg7 $16)) 37... gxf5 $2 {[%emt 0:00:27][%mdl 8192]} (37... Rh8 $1 $11 {and Black has nothing to worry.} 38. Qxh8+ Nxh8 39. fxe6 Qc8 40. Nxb5 Rb7) 38. Qh7 $18 {[%emt 0:00:56]} Kf8 {[%emt 0:00:31]} 39. Kg1 {[%emt 0:02:15]} (39. Nxe6+ $142 Qxe6 40. Nd4) 39... Ng5 $2 {[%emt 0:00:31]} (39... Nd8) 40. Qh6+ $2 {[%emt 0:00:00]} (40. Bxg5 $18 {Bh6+ would kill now.} Rxg5 41. Rf2) 40... Ke8 $11 {[%emt 0:00:00]} 41. Bxg5 {[%emt 0:06:16]} Bxg5 {[%emt 0:04:02]} 42. Qxe6+ {[%emt 0:00:10]} Qxe6 {[%emt 0:00:44]} 43. Nxe6 {[%emt 0:00:05]} Bh4 {[%emt 0:05:19]} (43... Re7 $11 44. Nxg5 Rxg5) 44. Rf1 $14 {[%emt 0:02:06]} Re7 {[%emt 0:03:17]} 45. Nbd4 {[%emt 0:00:59]} Bg3 {[%emt 0:07:12]} 46. Rxf5 {[%emt 0:02:28]} Kd7 {[%emt 0:00:14]} 47. Nf4 {[%emt 0:01:34]} Bxf4 {[%emt 0:02:34]} 48. Rxf4 {[%emt 0:06:13]} ({Much worse is} 48. e6+ Rxe6 49. Rxe6 Be3+ 50. Rxe3 Nxe3 $11) 48... Rxe5 {[%emt 0:00:09]} 49. Rf7+ {[%emt 0:01:27]} Ke8 {[%emt 0:02:14]} 50. Rff2 {[%emt 0:07:03]} Rxe2 {[%emt 0:00:15]} 51. Rxe2+ {[%emt 0:00:05]} Kf7 {[%emt 0:00:42]} 52. Nxb5 {[%emt 0:00:13]} Ra8 {[%emt 0:05:04]} 53. Nc7 {[%emt 0:04:12]} Ra5 {[%emt 0:00:10]} 54. Ne6 {[%emt 0:00:16]} Ra3 {[%emt 0:01:50]} 55. Nf4 {[%emt 0:00:11]} Rxc3 {[%emt 0:00:08]} 56. Nxd5 {[%emt 0:00:06]} Ra3 {[%emt 0:00:19]} 57. Rc2 {[%emt 0:01:58]} b5 {[%emt 0:01:54]} 58. Nc7 {[%emt 0:02:23]} Nd6 {[%emt 0:00:02]} 59. Rd2 {[%emt 0:00:50]} Ra7 {[%emt 0:00:13]} 60. Rxd6 {[%emt 0:01:17]} Rxc7 {[%emt 0:00:01]} 61. Rd2 {[%emt 0:00:39]} Ra7 {[%emt 0:00:27]} 62. Kf2 {[%emt 0:00:48]} Ra3 {[%emt 0:00:21]} 63. Rb2 {[%emt 0:00:21]} b4 {[%emt 0:00:51]} 64. g3 {[%emt 0:00:36]} Kg6 {[%emt 0:00:06]} 65. Kg2 {[%emt 0:00:07]} Kg5 {[%emt 0:00:10]} 1/2-1/2

[Event "Romanian Superliga 2024"]
[Site "Mamaia"]
[Date "2024.10.01"]
[Round "4.8"]
[White "Aryan Chopra"]
[Black "Stoyanov, Tsvetan"]
[Result "1-0"]
[ECO "C42"]
[WhiteElo "2620"]
[BlackElo "2471"]
[Annotator "RC"]
[PlyCount "157"]
[EventDate "2024.09.26"]
[EventType "team-tourn"]
[EventCountry "ROU"]
[SourceTitle "playchess.com"]
[Source "ChessBase"]
[SourceQuality "1"]
[TimeControl "40/5400+30:1800+30"]

1. e4 {[%emt 0:00:05]} e5 {[%emt 0:00:10]} 2. Nf3 {[%emt 0:00:05]} Nf6 {[%emt 0:00:06]} 3. Nxe5 {[%emt 0:00:06]} d6 {[%emt 0:00:17]} 4. Nf3 {[%emt 0:00:06]} Nxe4 {[%emt 0:00:06]} 5. Nc3 {[%emt 0:00:05]} Nxc3 {[%emt 0:00:27]} 6. dxc3 {[%emt 0:00:06]} Be7 {[%emt 0:00:14]} 7. Be3 {[%emt 0:00:28]} O-O {[%emt 0:00:34]} 8. Qd2 {[%emt 0:00:13]} Nd7 {[%emt 0:00:24]} 9. O-O-O {[%emt 0:00:23]} Re8 {[%emt 0:00:16]} 10. Bd3 {[%emt 0:04:10]} Nf6 {[%emt 0:00:22]} 11. Rhe1 {[%emt 0:01:07]} Bg4 {[%emt 0:10:53]} 12. Kb1 {[%emt 0:06:43]} Qd7 {[%emt 0:08:50]} 13. Qe2 {[%emt 0:17:35]} Bf8 {[%emt 0:15:30]} 14. h3 {[%emt 0:00:31]} Bf5 {[%emt 0:05:15]} 15. Bxf5 {[%emt 0:09:34]} Qxf5 {[%emt 0:00:03]} 16. g4 {[%emt 0:00:12]} Qe4 {[%emt 0:10:42]} 17. c4 {[%emt 0:04:33]} g6 {[%emt 0:14:51]} 18. Nd4 {[%emt 0:05:17]} b6 {[%emt 0:07:04]} 19. Nb5 {[%emt 0:21:28]} Qc6 {[%emt 0:02:51]} 20. Qd3 {[%emt 0:02:56]} a6 {[%emt 0:03:00]} 21. Nc3 {[%emt 0:00:25]} Bg7 {[%emt 0:00:44]} 22. Bd4 {[%emt 0:01:47]} Rxe1 {[%emt 0:02:34]} 23. Rxe1 {[%emt 0:00:06]} Re8 {[%emt 0:00:03]} 24. Rxe8+ {[%emt 0:00:25]} Qxe8 {[%emt 0:00:24]} 25. a3 {[%emt 0:02:54]} Qe1+ {[%emt 0:07:33]} 26. Ka2 {[%emt 0:00:10]} Ne8 {[%emt 0:00:41]} 27. Nd5 {[%emt 0:01:50]} Bxd4 {[%emt 0:01:04]} 28. Qxd4 {[%emt 0:00:05]} Qe2 {[%emt 0:00:12]} 29. c3 {[%emt 0:04:19]} h6 {[%emt 0:02:52]} 30. h4 {[%emt 0:03:40]} b5 {[%emt 0:02:42]} 31. cxb5 {[%emt 0:01:19]} axb5 {[%emt 0:00:04]} 32. g5 {[%emt 0:07:07]} hxg5 {[%emt 0:00:14]} 33. hxg5 {[%emt 0:00:05]} c6 {[%emt 0:01:15]} 34. Qe3 {[%emt 0:04:56]} Qc4+ {[%emt 0:01:54]} 35. b3 {[%emt 0:00:02]} Qxd5 {[%emt 0:00:01]} 36. Qxe8+ {[%emt 0:00:03]} Kh7 {[%emt 0:01:18]} 37. Qe3 {[%emt 0:00:19]} Qd1 {[%emt 0:01:35]} 38. Kb2 {[%emt 0:00:38]} d5 {[%emt 0:00:46]} 39. Qf4 {[%emt 0:01:42]} Qe2+ {[%emt 0:00:39]} 40. Kc1 {[%emt 0:00:00]} Qe1+ {[%emt 0:00:00]} 41. Kc2 {[%emt 0:00:29]} Qe2+ {[%emt 0:03:50]} 42. Qd2 {[%emt 0:05:35]} Qe4+ {[%emt 0:00:28]} 43. Kb2 {[%emt 0:00:42]} Kg8 {[%emt 0:13:32]} 44. Qe3 {[%emt 0:02:36]} Qg4 {[%emt 0:00:06]} 45. Qe8+ {[%emt 0:02:26]} Kg7 {[%emt 0:00:00]} 46. Qe5+ {[%emt 0:00:07]} Kg8 {[%emt 0:03:22]} 47. Kc2 {[%emt 0:00:28]} Qf3 {[%emt 0:00:58]} 48. Qe8+ {[%emt 0:05:01]} Kh7 {[%emt 0:01:01]} 49. Qe3 {[%emt 0:00:06]} Qf5+ {[%emt 0:00:59]} 50. Kc1 {[%emt 0:01:15]} Qg4 {[%emt 0:01:20]} 51. Kd2 {[%emt 0:01:03]} Qf5 {[%emt 0:08:33]} 52. a4 {[%emt 0:03:28]} Qb1 {[%emt 0:00:19]} 53. axb5 {[%emt 0:00:23]} Qb2+ {[%emt 0:00:54]} 54. Ke1 {[%emt 0:03:44]} cxb5 {[%emt 0:00:11]} 55. b4 {[%emt 0:00:43]} Qc2 {[%emt 0:00:25]} 56. f3 {[%emt 0:03:51]} Kg8 {[%emt 0:01:17]} 57. Kf1 {[%emt 0:02:33]} Kh7 {[%emt 0:00:37]} 58. Ke1 {[%emt 0:01:41]} Kg8 {[%emt 0:00:04]} 59. Qd2 {[%emt 0:00:06]} Qf5 {[%emt 0:00:23]} 60. Kf2 {[%emt 0:01:41]} Qe5 {[%emt 0:00:54]} 61. Qe3 {[%emt 0:00:42]} Qh2+ {[%emt 0:01:04]} 62. Kf1 {[%emt 0:00:04]} Qc2 {[%emt 0:01:20]} 63. Qe8+ {[%emt 0:02:20]} Kg7 {[%emt 0:00:01]} 64. Qe5+ {[%emt 0:00:07]} Kg8 {[%emt 0:00:01]} 65. Qxd5 {[%emt 0:00:47]} Qxc3 {[%emt 0:00:10]} 66. Qxb5 {[%emt 0:00:04]} Qxf3+ {[%emt 0:00:04]} 67. Ke1 {[%emt 0:00:04]} Qe3+ {[%emt 0:00:37]} 68. Kd1 {[%emt 0:00:05]} Kf8 {[%emt 0:01:53]} 69. Qd5 {[%emt 0:02:44]} Ke7 {[%emt 0:00:40]} 70. Kc2 {[%emt 0:01:28]} Qb6 {[%emt 0:01:07]} 71. Qe5+ {[%emt 0:00:51]} Kd7 {[%emt 0:00:31]} 72. b5 {[%emt 0:00:13]} Qf2+ {[%emt 0:00:41]} 73. Kc3 {[%emt 0:00:28]} Qf3+ {[%emt 0:00:28]} 74. Kb4 {[%emt 0:00:22]} Qd3 {[%emt 0:00:38]} 75. Kc5 {[%emt 0:00:16]} Qc2+ {[%emt 0:00:26]} 76. Kb6 {[%emt 0:00:09]} Qf2+ {[%emt 0:00:29]} 77. Qc5 {[%emt 0:00:15]} Qf4 {[%emt 0:00:22]} 78. Qc6+ {[%emt 0:00:26]} Kd8 {[%emt 0:00:01]} 79. Qf6+ {[%emt 0:00:41]} 1-0

[Event "Romanian Superliga 2024"]
[Site "Mamaia"]
[Date "2024.10.01"]
[Round "4.9"]
[White "Ghimpu, Samuel-Timotei"]
[Black "Nisipeanu, Liviu-Dieter"]
[Result "1/2-1/2"]
[ECO "C49"]
[WhiteElo "2456"]
[BlackElo "2580"]
[Annotator "TA"]
[PlyCount "36"]
[EventDate "2024.09.26"]
[EventType "team-tourn"]
[EventCountry "ROU"]
[SourceTitle "playchess.com"]
[Source "ChessBase"]
[SourceQuality "1"]
[TimeControl "40/5400+30:1800+30"]

{[%evp 13,36,0,14,0,10,6,19,2,12,19,9,17,18,10,37,31,34,37,39,-11,-6,-22,-10,-20,-10]} 1. e4 {[%emt 0:00:47]} e5 {[%emt 0:00:06]} 2. Nf3 {[%emt 0:00:25]} Nc6 {[%emt 0:00:06]} 3. Nc3 {[%emt 0:01:22]} Nf6 {[%emt 0:00:07]} 4. Bb5 {[%emt 0:00:17]} Bb4 {[%emt 0:00:58]} 5. O-O {[%emt 0:00:30]} O-O {[%emt 0:00:25]} 6. Bxc6 {[%emt 0:00:14]} dxc6 {[%emt 0:04:00]} 7. d3 {[%emt 0:04:47]} Re8 {[%emt 0:01:39]} 8. Ne2 {[%emt 0:00:30]} Bd6 {[%emt 0:01:31]} 9. a4 {[%emt 0:00:54]} c5 {[%emt 0:03:06][%cal Oc5c4]} 10. b3 {[%emt 0:02:37]} Nd7 {[%emt 0:01:38][%cal Bf6d7,Bd7b8,Bb8c6][%mdl 32]} 11. Nd2 {[%emt 0:00:47]} Nb8 {[%emt 0:00:58]} 12. Nc4 {[%emt 0:01:11]} Nc6 {[%emt 0:00:05]} 13. h3 {[%emt 0:04:15]} f5 {[%emt 0:08:27]} 14. exf5 {[%emt 0:01:41]} Bxf5 {[%emt 0:00:07]} 15. Ng3 {[%emt 0:04:30] A dynamic duo of knights.} Bg6 {[%emt 0:04:06]} 16. Nxd6 {[%emt 0:05:16]} ({White should play} 16. Qg4 $14) 16... cxd6 $11 {[%emt 0:02:24] The position is equal.} 17. f4 {[%emt 0:00:22]} exf4 {[%emt 0:04:50]} 18. Bxf4 {[%emt 0:00:15][%cal Og3e4]} d5 {[%emt 0:05:44] Weighted Error Value: White=0.11 (very precise) /Black=0.08 (flawless) .  Mistake:       	White=1     	---        Inaccurate:     	---       	Black=1      OK:         	White=4     	Black=3} 1/2-1/2

[Event "Romanian Superliga 2024"]
[Site "Mamaia"]
[Date "2024.10.01"]
[Round "4.10"]
[White "Nanu, Costica-Ciprian"]
[Black "Gheorghiu, Calin"]
[Result "1-0"]
[ECO "D78"]
[WhiteElo "2525"]
[BlackElo "2313"]
[Annotator "TA"]
[PlyCount "75"]
[EventDate "2024.09.26"]
[EventType "team-tourn"]
[EventCountry "ROU"]
[SourceTitle "playchess.com"]
[Source "ChessBase"]
[SourceQuality "1"]
[TimeControl "40/5400+30:1800+30"]

{[%evp 18,75,33,15,46,54,56,47,47,43,75,35,64,49,61,37,41,24,24,19,72,97,80,71,73,76,135,86,81,94,85,97,91,39,100,81,80,100,96,73,91,25,186,176,187,185,253,210,226,221,513,531,689,670,739,680,672,631,1423,1197]} 1. Nf3 {[%emt 0:00:47]} d5 {[%emt 0:00:08]} 2. g3 {[%emt 0:00:09]} Nf6 {[%emt 0:03:44]} 3. Bg2 {[%emt 0:00:22]} g6 {[%emt 0:03:10]} 4. c4 {[%emt 0:00:50]} c6 {[%emt 0:01:09]} 5. b3 {[%emt 0:01:54]} Bg7 {[%emt 0:01:02]} 6. Bb2 {[%emt 0:00:13]} O-O {[%emt 0:00:40]} 7. O-O {[%emt 0:00:11]} Re8 {[%emt 0:06:04]} 8. d4 {[%emt 0:05:37]} Nbd7 {[%emt 0:17:52]} 9. Nbd2 {[%emt 0:06:44]} a5 {[%emt 0:06:03]} 10. a4 {[%emt 0:02:49]} Nf8 {[%emt 0:05:51]} 11. Rc1 {[%emt 0:02:17]} Bf5 {[%emt 0:04:54]} 12. Nh4 {[%emt 0:02:29]} Bg4 {[%emt 0:04:55] White is slightly better.} 13. h3 {[%emt 0:02:20]} Be6 {[%emt 0:03:26][%cal Of6e4]} 14. Nhf3 {[%emt 0:01:17]} h6 {[%emt 0:02:31]} 15. Ne5 {[%emt 0:02:17]} N8d7 {[%emt 0:02:10]} 16. Nd3 {[%emt 0:02:41]} Bf5 {[%emt 0:01:35]} 17. cxd5 {[%emt 0:02:33]} cxd5 {[%emt 0:00:16]} 18. Nf4 {[%emt 0:00:30][%cal Og3g4] next g4! is good for White.} g5 {[%emt 0:06:19]} (18... h5 $11) 19. Nxd5 $16 {[%emt 0:02:16]} Nxd5 {[%emt 0:00:13]} 20. Bxd5 {[%emt 0:07:05] aiming for g4.} Bxh3 {[%emt 0:00:04]} 21. Re1 {[%emt 0:04:15][%cal Oe2e4]} Rb8 {[%emt 0:00:34]} (21... e5 $142) 22. Nc4 {[%emt 0:01:38] White is more active.} (22. e4 $142) 22... Nb6 {[%emt 0:03:35]} 23. Bf3 {[%emt 0:01:35]} Nxc4 {[%emt 0:00:50]} 24. bxc4 {[%emt 0:00:14]} e5 {[%emt 0:00:51]} 25. dxe5 {[%emt 0:02:55]} (25. d5 $16) 25... Qc7 {[%emt 0:01:11]} (25... Qxd1 $14 26. Rexd1 Bxe5) 26. Bd5 {[%emt 0:12:48]} Bxe5 {[%emt 0:01:54]} 27. Bxe5 {[%emt 0:01:24]} Qxe5 {[%emt 0:01:07]} 28. Qd3 {[%emt 0:01:58]} Qf6 {[%emt 0:03:02] Inhibits Qg6+.} 29. Qc3 {[%emt 0:00:29]} (29. e4 $16) 29... Re5 $2 {[%emt 0:01:46] [#] This costs Black the game.} (29... Qxc3 $11 30. Rxc3 Bd7) 30. Qxa5 {[%emt 0:04:47]} Rbe8 {[%emt 0:00:15]} 31. Qc3 {[%emt 0:01:29]} h5 {[%emt 0:01:02]} (31... Kg7 $142 32. Bxb7 Rxe2 33. Qxf6+ Kxf6 34. Rxe2 Rxe2) 32. Rb1 {[%emt 0:01:47]} b6 {[%emt 0:01:16]} 33. Qd4 {[%emt 0:00:18]} Qf5 $2 {[%emt 0:03:20]} (33... R5e6 34. Qd2 Re5) 34. Rxb6 $18 {[%emt 0:02:01] White is clearly winning.} Bg4 {[%emt 0:01:26]} 35. Rb7 {[%emt 0:01:37]} R5e7 {[%emt 0:03:49]} 36. Rxe7 {[%emt 0:00:45]} Rxe7 {[%emt 0:00:02]} 37. e4 {[%emt 0:03:55]} Bf3 {[%emt 0:01:49] [#] ( -> ...Qh3)} 38. Rb1 {[%emt 0:00:24] Weighted Error Value: White=0.20 (precise) /Black=0.56.  Loses game:     	---       	Black=1      Mistake:       	White=3     	Black=5      Inaccurate:     	White=1     	Black=2      OK:         	White=6     	Black=2      Best:        	White=1     	Black=2} (38. exf5 $2 {leads to mate.} Rxe1+ 39. Kh2 Rh1#) 1-0